fUSD/lending_fUSD_20240122
["ID","MTS","AMOUNT","RATE_DAILY","PERIOD"]
[312523175,1705942279338,-500.0,0.00055342,120]
[312523176,1705942279348,-500.0,0.00055342,120]
[312523177,1705942279357,-500.0,0.00055342,120]
[312523178,1705942279367,-500.0,0.00055342,120]
[312523179,1705942279379,-500.0,0.00055342,120]
[312523180,1705942279389,-500.0,0.00055342,120]
[312523181,1705942279398,-674.69,0.00055342,120]
[312523182,1705942279408,-500.0,0.00055342,120]
[312523183,1705942279418,-7567.95,0.00055342,5]
[312523184,1705942279427,-1123.98,0.00055342,120]
[312523185,1705942279437,-1147.57,0.00055342,120]
[312523186,1705942279447,-984.05,0.00055342,120]
[312523187,1705942279457,-1203.54,0.00055342,120]
[312523188,1705942279466,-500.0,0.00055342,120]
[312523189,1705942279477,-1141.4,0.00055342,120]
[312523190,1705942279487,-3747.78,0.00055342,120]
[312523191,1705942279497,-500.0,0.00055342,120]
[312523192,1705942279508,-845.71,0.00055342,120]
[312523193,1705942279520,-500.0,0.00055342,120]
[312523194,1705942279531,-566.43,0.00055342,120]
[312523195,1705942279541,-500.0,0.00055342,120]
[312523196,1705942279551,-700.95,0.00055342,120]
[312523197,1705942279561,-500.0,0.00055342,120]
[312523198,1705942279571,-1493.6,0.00055342,120]
[312523199,1705942279581,-665.32,0.00055342,120]
[312523200,1705942279592,-500.0,0.00055342,120]
[312523201,1705942279601,-2461.03,0.00055342,120]
[312523202,1705942279611,-500.0,0.00055342,2]
[312523203,1705942279621,-902.4,0.00055342,120]
[312523204,1705942279633,-500.0,0.00055342,120]
[312523205,1705942279643,-487.88496157,0.00055342,120]
[312523206,1705942279653,-5152.1,0.00055342,120]
[312523207,1705942279663,-1453.38,0.00055342,120]
[312523208,1705942279674,-1243.93,0.00055342,120]
[312523209,1705942279683,-1208.07,0.00055342,120]
[312523210,1705942279694,-161.98064342,0.00055355,120]
[312523211,1705942279704,-1000.0,0.00055356,120]
[312523212,1705942279714,-159.77004051,0.00055378,120]
[312523213,1705942279724,-250.0,0.000554,120]
[312523214,1705942279734,-258.8,0.000554,120]
[312523215,1705942279744,-226.74152247,0.00055416,120]
[312523216,1705942279754,-1427478.40575305,0.00055419,120]
[312523217,1705942279764,-151.0,0.00055419,30]
[312523218,1705942279773,-151.0,0.00055419,120]
[312523219,1705942279783,-151.0,0.00055419,120]
[312523220,1705942279793,-151.0,0.00055419,120]
[312523221,1705942279802,-151.0,0.00055419,120]
[312523222,1705942279812,-181.426524,0.00055419,120]
[312523223,1705942279821,-181.426524,0.00055419,120]
[312523224,1705942279830,-151.0,0.00055419,120]
[312523225,1705942279840,-900.0,0.0005542,55]
[312523226,1705942279849,-1000.0,0.00055438,120]
[312523227,1705942279860,-279.66955,0.00055462,120]
[312523228,1705942279870,-279.66955,0.00055462,120]
[312523229,1705942279881,-151.0,0.00055462,120]
[312523230,1705942279891,-63412.825025,0.00055462,2]
[312523231,1705942279901,-4176.6261884,0.00055462,2]
[312523232,1705942279911,-2140.1964352,0.00055462,2]
[312523233,1705942279920,-150.0,0.0005547,14]
[312523234,1705942279929,-150.0,0.0005547,14]
[312523235,1705942279938,-155.23,0.00055481,2]
[312523236,1705942279948,-1000000.0,0.000555,120]
[312523237,1705942279957,-500.0,0.00055506,2]
[312523238,1705942279967,-192.61145802,0.00055516,65]
[312523239,1705942279976,-163.18,0.00055575,2]
[312523240,1705942279986,-156.84806209,0.00055588,120]
[312523241,1705942279996,-226.74152247,0.00055595,120]
[312523242,1705942280005,-304.4094531,0.00055601,30]
[312523243,1705942280015,-213.80276045,0.00055601,30]
[312523244,1705942280025,-226.74152247,0.00055608,120]
[312523245,1705942280035,-155.449381,0.00055616,30]
[312523246,1705942280045,-163.118548,0.00055616,120]
[312523247,1705942280055,-151.0,0.00055616,120]
[312523248,1705942280065,-247.488893,0.00055616,120]
[312523249,1705942280075,-151.0,0.00055616,120]
[312523250,1705942280086,-181.426524,0.00055616,120]
[312523251,1705942280097,-181.426524,0.00055616,120]
[312523252,1705942280108,-151.0,0.00055616,120]
[312523253,1705942280119,-279.66955,0.00055616,120]
[312523254,1705942280130,-279.66955,0.00055616,120]
[312523255,1705942280141,-151.0,0.00055616,120]
[312523256,1705942280151,-500.0,0.00055616,30]
[312523257,1705942280162,-500.0,0.00055616,7]
[312523258,1705942280172,-969.16,0.00055616,120]
[312523259,1705942280182,-12581.11,0.00055616,120]
[312523260,1705942280193,-1000.0,0.00055616,120]
[312523261,1705942280203,-500.0,0.00055616,120]
[312523262,1705942280214,-768.74,0.00055616,120]
[312523263,1705942280224,-500.0,0.00055616,120]
[312523264,1705942280234,-1000.0,0.00055616,120]
[312523265,1705942280244,-761.66,0.00055616,120]
[312523266,1705942280254,-160.79327036,0.00055616,120]
[312523267,1705942280264,-500.0,0.00055616,120]
[312523268,1705942280273,-579.81,0.00055616,120]
[312523269,1705942280283,-500.0,0.00055616,120]
[312523270,1705942280293,-500.0,0.00055616,120]
[312523271,1705942280303,-500.0,0.00055616,120]
[312523272,1705942280313,-500.0,0.00055616,120]
[312523273,1705942280323,-353.55201098,0.00055616,120]
[312523274,1705942280333,-500.0,0.00055616,120]
[312523275,1705942280343,-500.0,0.00055616,120]
[312523276,1705942280353,-500.0,0.00055616,120]
[312523277,1705942280363,-665.43,0.00055616,120]
[312523278,1705942280373,-719.77,0.00055616,120]
[312523279,1705942280385,-416.98462739,0.00055616,120]
[312523280,1705942280394,-305.09890152,0.00055616,120]
[312523281,1705942280404,-500.0,0.00055616,120]
[312523282,1705942280414,-807.38,0.00055616,120]
[312523283,1705942280424,-160.02554634,0.00055616,120]
[312523284,1705942280435,-501.06,0.00055616,120]
[312523285,1705942280445,-500.0,0.00055616,120]
[312523286,1705942280455,-500.0,0.00055616,120]
[312523287,1705942280466,-500.0,0.00055616,120]
[312523288,1705942280478,-500.0,0.00055616,120]
[312523289,1705942280488,-500.0,0.00055616,120]
[312523290,1705942280499,-614.6,0.00055616,120]
[312523291,1705942280512,-500.0,0.00055616,120]
[312523292,1705942280522,-500.0,0.00055616,120]
[312523293,1705942280532,-673.42,0.00055616,120]
[312523294,1705942280543,-575.84,0.00055616,120]
[312523295,1705942280553,-500.0,0.00055616,120]
[312523296,1705942280563,-500.0,0.00055616,120]
[312523297,1705942280574,-616.04,0.00055616,120]
[312523298,1705942280585,-500.0,0.00055616,120]
[312523299,1705942280594,-810.82,0.00055616,120]
[312523300,1705942280605,-500.0,0.00055616,120]
[312523301,1705942280615,-659.18,0.00055616,2]
[312523302,1705942280629,-568.29,0.00055616,120]
[312523303,1705942280640,-500.0,0.00055616,120]
[312523304,1705942280873,-500.0,0.00055616,120]
[312523305,1705942280893,-500.0,0.00055616,120]
[312523306,1705942280904,-313.9372811,0.00055616,120]
[312523307,1705942280916,-500.0,0.00055616,120]
[312523308,1705942280927,-500.0,0.00055616,120]
[312523309,1705942280938,-500.0,0.00055616,120]
[312523310,1705942280949,-543.82,0.00055616,120]
[312523311,1705942280959,-589.84,0.00055616,120]
[312523312,1705942280970,-319.53710185,0.00055616,120]
[312523313,1705942280981,-500.0,0.00055616,2]
[312523314,1705942280992,-500.0,0.00055616,120]
[312523315,1705942281002,-500.0,0.00055616,120]
[312523316,1705942281012,-500.0,0.00055616,120]
[312523317,1705942281023,-500.0,0.00055616,120]
[312523318,1705942281033,-500.0,0.00055616,120]
[312523319,1705942281044,-500.0,0.00055616,120]
[312523320,1705942281054,-618.43,0.00055616,120]
[312523321,1705942281064,-500.0,0.00055616,120]
[312523322,1705942281074,-500.0,0.00055616,120]
[312523323,1705942281084,-500.0,0.00055616,120]
[312523324,1705942281094,-500.0,0.00055616,120]
[312523325,1705942281104,-503.21,0.00055616,120]
[312523326,1705942281114,-500.0,0.00055616,120]
[312523327,1705942281124,-500.0,0.00055616,7]
[312523328,1705942281142,-500.0,0.00055616,120]
[312523329,1705942281152,-500.0,0.00055616,120]
[312523330,1705942281162,-548.09,0.00055616,120]
[312523331,1705942281173,-500.0,0.00055616,120]
[312523332,1705942281185,-500.0,0.00055616,120]
[312523333,1705942281195,-500.0,0.00055616,120]
[312523334,1705942281205,-207.01688913,0.00055616,120]
[312523335,1705942281215,-500.0,0.00055616,120]
[312523336,1705942281225,-500.0,0.00055616,120]
[312523337,1705942281235,-500.0,0.00055616,120]
[312523338,1705942281245,-500.0,0.00055616,120]
[312523339,1705942281255,-544.54917716,0.00055616,120]
[312523340,1705942281265,-635.0,0.00055616,120]
[312523341,1705942281275,-500.0,0.00055616,120]
[312523342,1705942281285,-500.0,0.00055616,120]
[312523343,1705942281295,-826.62,0.00055616,120]
[312523344,1705942281305,-500.0,0.00055616,120]
[312523345,1705942281315,-593.99,0.00055616,120]
[312523346,1705942281325,-500.0,0.00055616,120]
[312523347,1705942281335,-500.0,0.00055616,120]
[312523348,1705942281345,-500.0,0.00055616,120]
[312523349,1705942281355,-503.77,0.00055616,120]
[312523350,1705942281365,-500.0,0.00055616,120]
[312523351,1705942281379,-500.0,0.00055616,120]
[312523352,1705942281389,-584.08,0.00055616,120]
[312523353,1705942281399,-500.0,0.00055616,120]
[312523354,1705942281409,-1733.58,0.00055616,120]
[312523355,1705942281420,-500.0,0.00055616,120]
[312523356,1705942281429,-500.0,0.00055616,120]
[312523357,1705942281439,-500.0,0.00055616,120]
[312523358,1705942281449,-500.0,0.00055616,120]
[312523359,1705942281459,-500.0,0.00055616,120]
[312523360,1705942281470,-538.86,0.00055616,120]
[312523361,1705942281480,-500.0,0.00055616,120]
[312523362,1705942281490,-500.0,0.00055616,120]
[312523363,1705942281501,-532.07389009,0.00055616,120]
[312523364,1705942281513,-517.5,0.00055616,120]
[312523365,1705942281523,-500.0,0.00055616,120]
[312523366,1705942281534,-500.0,0.00055616,120]
[312523367,1705942281545,-873.69,0.00055616,120]
[312523368,1705942281555,-526.68734203,0.00055616,120]
[312523369,1705942281565,-500.0,0.00055616,120]
[312523370,1705942281576,-557.04,0.00055616,120]
[312523371,1705942281587,-500.0,0.00055616,120]
[312523372,1705942281598,-500.0,0.00055616,120]
[312523373,1705942281608,-500.0,0.00055616,120]
[312523374,1705942281618,-500.0,0.00055616,120]
[312523375,1705942281630,-500.0,0.00055616,120]
[312523376,1705942281640,-500.0,0.00055616,120]
[312523377,1705942281650,-500.0,0.00055616,120]
[312523378,1705942281660,-500.0,0.00055616,120]
[312523379,1705942281670,-223.64566138,0.00055616,120]
[312523380,1705942281679,-500.0,0.00055616,120]
[312523381,1705942281690,-500.0,0.00055616,120]
[312523382,1705942281701,-727.32,0.00055616,120]
[312523383,1705942281711,-500.0,0.00055616,120]
[312523384,1705942281721,-500.0,0.00055616,120]
[312523385,1705942281731,-500.0,0.00055616,120]
[312523386,1705942281742,-791.21,0.00055616,120]
[312523387,1705942281751,-500.0,0.00055616,120]
[312523388,1705942281762,-491.0533262,0.00055616,120]
[312523389,1705942281772,-500.0,0.00055616,120]
[312523390,1705942281782,-903.36,0.00055616,120]
[312523391,1705942281793,-500.0,0.00055616,120]
[312523392,1705942281803,-1283.28,0.00055616,120]
[312523393,1705942281813,-500.0,0.00055616,120]
[312523394,1705942281822,-594.65,0.00055616,120]
[312523395,1705942281832,-617.64,0.00055616,120]
[312523396,1705942281841,-720.46,0.00055616,120]
[312523397,1705942281851,-986.04,0.00055616,120]
[312523398,1705942281861,-723.96,0.00055616,120]
[312523399,1705942281870,-985.43,0.00055616,120]
[312523400,1705942281883,-519.85,0.00055616,120]
[312523401,1705942281892,-500.0,0.00055616,120]
[312523402,1705942281901,-500.0,0.00055616,120]
[312523403,1705942281911,-500.0,0.00055616,120]
[312523404,1705942281920,-1096.6,0.00055616,120]
[312523405,1705942281929,-500.0,0.00055616,120]
[312523406,1705942281939,-1001.01,0.00055616,120]
[312523407,1705942281948,-500.0,0.00055616,120]
[312523408,1705942281957,-500.0,0.00055616,120]
[312523409,1705942281967,-500.0,0.00055616,120]
[312523410,1705942281976,-500.0,0.00055616,120]
[312523411,1705942281985,-500.0,0.00055616,2]
[312523412,1705942281994,-500.0,0.00055616,120]
[312523413,1705942282004,-748.21,0.00055616,120]
[312523414,1705942282013,-601.52,0.00055616,120]
[312523415,1705942282022,-757.21,0.00055616,120]
[312523416,1705942282032,-500.0,0.00055616,120]
[312523417,1705942282041,-500.0,0.00055616,2]
[312523418,1705942282050,-578.69,0.00055616,120]
[312523419,1705942282060,-500.0,0.00055616,120]
[312523420,1705942282069,-500.0,0.00055616,120]
[312523421,1705942282078,-690.74,0.00055616,120]
[312523422,1705942282087,-1000.0,0.00055616,7]
[312523423,1705942282096,-655.68,0.00055616,120]
[312523424,1705942282105,-500.0,0.00055616,120]
[312523425,1705942282115,-815.64,0.00055616,120]
[312523426,1705942282124,-500.0,0.00055616,120]
[312523427,1705942282135,-500.0,0.00055616,120]
[312523428,1705942282144,-535.82,0.00055616,120]
[312523429,1705942282154,-987.66,0.00055616,120]
[312523430,1705942282163,-500.0,0.00055616,120]
[312523431,1705942282172,-500.0,0.00055616,120]
[312523432,1705942282182,-500.0,0.00055616,120]
[312523433,1705942282191,-1207.6,0.00055616,120]
[312523434,1705942282200,-500.0,0.00055616,120]
[312523435,1705942282210,-799.27,0.00055616,120]
[312523436,1705942282219,-509.48,0.00055616,120]
[312523437,1705942282229,-956.9,0.00055616,120]
[312523438,1705942282238,-1236.74,0.00055616,120]
[312523439,1705942282248,-500.0,0.00055616,120]
[312523440,1705942282257,-500.0,0.00055616,120]
[312523441,1705942282267,-794.46,0.00055616,120]
[312523442,1705942282276,-676.21,0.00055616,120]
[312523443,1705942282285,-784.83,0.00055616,120]
[312523444,1705942282294,-500.0,0.00055616,120]
[312523445,1705942282303,-1206.35,0.00055616,120]
[312523446,1705942282313,-1325.76,0.00055616,120]
[312523447,1705942282322,-500.0,0.00055616,7]
[312523448,1705942282331,-940.83,0.00055616,120]
[312523449,1705942282340,-766.88,0.00055616,120]
[312523450,1705942282350,-500.0,0.00055616,120]
[312523451,1705942282359,-500.0,0.00055616,120]
[312523452,1705942282369,-882.54,0.00055616,2]
[312523453,1705942282381,-1098.14,0.00055616,120]
[312523454,1705942282391,-1272.77,0.00055616,120]
[312523455,1705942282401,-855.01,0.00055616,120]
[312523456,1705942282410,-533.97744401,0.00055616,120]
[312523457,1705942282419,-1433.57,0.00055616,120]
[312523458,1705942282429,-500.0,0.00055616,120]
[312523459,1705942282439,-1004.38,0.00055616,120]
[312523460,1705942282449,-500.0,0.00055616,120]
[312523461,1705942282458,-613.63,0.00055616,120]
[312523462,1705942282468,-500.0,0.00055616,120]
[312523463,1705942282480,-500.0,0.00055616,120]
[312523464,1705942282490,-511.59,0.00055616,120]
[312523465,1705942282500,-851.13,0.00055616,120]
[312523466,1705942282511,-933.89,0.00055616,120]
[312523467,1705942282521,-711.76,0.00055616,120]
[312523468,1705942282531,-500.0,0.00055616,120]
[312523469,1705942282541,-500.0,0.00055616,120]
[312523470,1705942282551,-572.52,0.00055616,120]
[312523471,1705942282560,-500.0,0.00055616,120]
[312523472,1705942282569,-773.03,0.00055616,120]
[312523473,1705942282579,-510.41274575,0.00055616,120]
[312523474,1705942282589,-500.0,0.00055616,120]
[312523475,1705942282599,-1058.65,0.00055616,120]
[312523476,1705942282609,-762.64,0.00055616,120]
[312523477,1705942282618,-500.0,0.00055616,120]
[312523478,1705942282629,-509.59,0.00055616,120]
[312523479,1705942282638,-665.88,0.00055616,120]
[312523480,1705942282648,-1002.76,0.00055616,120]
[312523481,1705942282657,-500.0,0.00055616,120]
[312523482,1705942282667,-500.0,0.00055616,120]
[312523483,1705942282677,-904.02,0.00055616,120]
[312523484,1705942282687,-500.0,0.00055616,120]
[312523485,1705942282696,-827.04,0.00055616,120]
[312523486,1705942282706,-704.08,0.00055616,120]
[312523487,1705942282716,-787.53,0.00055616,120]
[312523488,1705942282725,-1047.73,0.00055616,120]
[312523489,1705942282735,-872.35,0.00055616,120]
[312523490,1705942282745,-500.0,0.00055616,120]
[312523491,1705942282754,-500.0,0.00055616,120]
[312523492,1705942282764,-500.0,0.00055616,120]
[312523493,1705942282773,-973.07,0.00055616,120]
[312523494,1705942282783,-1055.58,0.00055616,120]
[312523495,1705942282792,-500.0,0.00055616,120]
[312523496,1705942282801,-500.0,0.00055616,120]
[312523497,1705942282810,-592.41,0.00055616,120]
[312523498,1705942282820,-500.0,0.00055616,120]
[312523499,1705942282829,-500.0,0.00055616,120]
[312523500,1705942282839,-500.0,0.00055616,120]
[312523501,1705942282847,-1284.43,0.00055616,120]
[312523502,1705942282856,-500.0,0.00055616,120]
[312523503,1705942282866,-1139.91,0.00055616,120]
[312523504,1705942282876,-500.0,0.00055616,120]
[312523505,1705942282886,-500.0,0.00055616,120]
[312523506,1705942282895,-562.17,0.00055616,120]
[312523507,1705942282904,-750.36,0.00055616,120]
[312523508,1705942282913,-539.03,0.00055616,120]
[312523509,1705942282922,-500.0,0.00055616,120]
[312523510,1705942282931,-1374.87,0.00055616,120]
[312523511,1705942282940,-711.43,0.00055616,120]
[312523512,1705942282950,-579.03,0.00055616,120]
[312523513,1705942282959,-500.0,0.00055616,120]
[312523514,1705942282968,-1076.02,0.00055616,120]
[312523515,1705942282977,-500.0,0.00055616,120]
[312523516,1705942282986,-1080.86,0.00055616,120]
[312523517,1705942282996,-559.5,0.00055616,120]
[312523518,1705942283005,-500.0,0.00055616,120]
[312523519,1705942283014,-200.45526057,0.00055616,120]
[312523520,1705942283023,-1198.92,0.00055616,120]
[312523521,1705942283032,-546.17,0.00055616,120]
[312523522,1705942283040,-1032.79,0.00055616,120]
[312523523,1705942283049,-912.89,0.00055616,120]
[312523524,1705942283059,-1291.04,0.00055616,120]
[312523525,1705942283068,-719.62,0.00055616,120]
[312523526,1705942283077,-1228.18,0.00055616,120]
[312523527,1705942283086,-500.0,0.00055616,120]
[312523528,1705942283096,-1064.71,0.00055616,120]
[312523529,1705942283105,-500.0,0.00055616,120]
[312523530,1705942283115,-933.5,0.00055616,120]
[312523531,1705942283124,-500.0,0.00055616,120]
[312523532,1705942283135,-500.0,0.00055616,120]
[312523533,1705942283144,-512.46,0.00055616,120]
[312523534,1705942283153,-1092.85,0.00055616,120]
[312523535,1705942283162,-1122.93,0.00055616,120]
[312523536,1705942283171,-834.87,0.00055616,120]
[312523537,1705942283180,-1098.97,0.00055616,120]
[312523538,1705942283190,-500.0,0.00055616,120]
[312523539,1705942283199,-500.0,0.00055616,120]
[312523540,1705942283207,-500.0,0.00055616,120]
[312523541,1705942283216,-500.0,0.00055616,120]
[312523542,1705942283225,-1124.27,0.00055616,120]
[312523543,1705942283234,-500.0,0.00055616,120]
[312523544,1705942283243,-548.35,0.00055616,120]
[312523545,1705942283252,-676.24,0.00055616,120]
[312523546,1705942283262,-500.0,0.00055616,120]
[312523547,1705942283271,-1183.29,0.00055616,120]
[312523548,1705942283280,-1234.09,0.00055616,120]
[312523549,1705942283289,-500.0,0.00055616,120]
[312523550,1705942283298,-500.0,0.00055616,120]
[312523551,1705942283307,-500.0,0.00055616,120]
[312523552,1705942283316,-500.0,0.00055616,120]
[312523553,1705942283326,-942.51,0.00055616,120]
[312523554,1705942283335,-539.8,0.00055616,120]
[312523555,1705942283344,-500.0,0.00055616,120]
[312523556,1705942283353,-1200.35,0.00055616,120]
[312523557,1705942283363,-500.0,0.00055616,120]
[312523558,1705942283373,-995.47,0.00055616,120]
[312523559,1705942283384,-500.0,0.00055616,120]
[312523560,1705942283395,-1034.97,0.00055616,120]
[312523561,1705942283404,-500.0,0.00055616,120]
[312523562,1705942283413,-500.0,0.00055616,120]
[312523563,1705942283422,-874.88,0.00055616,120]
[312523564,1705942283431,-507.23,0.00055616,120]
[312523565,1705942283440,-562.05,0.00055616,120]
[312523566,1705942283450,-514.2,0.00055616,120]
[312523567,1705942283461,-1038.58,0.00055616,120]
[312523568,1705942283471,-1546.51,0.00055616,2]
[312523569,1705942283480,-500.0,0.00055616,120]
[312523570,1705942283489,-552.78,0.00055616,120]
[312523571,1705942283501,-603.32905062,0.00055616,120]
[312523572,1705942283511,-1166.09,0.00055616,120]
[312523573,1705942283520,-500.0,0.00055616,120]
[312523574,1705942283529,-916.75,0.00055616,120]
[312523575,1705942283539,-500.0,0.00055616,120]
[312523576,1705942283548,-731.13,0.00055616,120]
[312523577,1705942283558,-825.25,0.00055616,120]
[312523578,1705942283568,-703.42,0.00055616,120]
[312523579,1705942283578,-500.0,0.00055616,120]
[312523580,1705942283589,-692.04,0.00055616,120]
[312523581,1705942283600,-185.18766113,0.00055616,120]
[312523582,1705942283610,-597.16,0.00055616,120]
[312523583,1705942283620,-609.93,0.00055616,120]
[312523584,1705942283631,-500.0,0.00055616,7]
[312523585,1705942283641,-500.0,0.00055616,120]
[312523586,1705942283651,-668.81,0.00055616,120]
[312523587,1705942283661,-604.43,0.00055616,120]
[312523588,1705942283671,-500.0,0.00055616,120]
[312523589,1705942283681,-435.51,0.00055616,120]
[312523590,1705942283690,-820.72,0.00055616,120]
[312523591,1705942283700,-500.0,0.00055616,120]
[312523592,1705942283710,-500.0,0.00055616,2]
[312523593,1705942283719,-390.20498394,0.00055616,120]
[312523594,1705942283729,-510.66,0.00055616,120]
[312523595,1705942283738,-1104.92,0.00055616,120]
[312523596,1705942283748,-500.0,0.00055616,120]
[312523597,1705942283757,-500.0,0.00055616,120]
[312523598,1705942283766,-150.0,0.00055616,14]
[312523599,1705942283776,-611.57,0.00055616,120]
[312523600,1705942283785,-500.0,0.00055616,120]
[312523601,1705942283795,-500.0,0.00055616,120]
[312523602,1705942283804,-705.3,0.00055616,120]
[312523603,1705942283813,-782.46,0.00055616,120]
[312523604,1705942283823,-572.75425115,0.00055616,120]
[312523605,1705942283832,-1193.75,0.00055616,120]
[312523606,1705942283841,-500.0,0.00055616,120]
[312523607,1705942283851,-520.80163692,0.00055616,120]
[312523608,1705942283860,-500.0,0.00055616,120]
[312523609,1705942283873,-841.24,0.00055616,120]
[312523610,1705942283885,-774.06,0.00055616,120]
[312523611,1705942283894,-500.0,0.00055616,120]
[312523612,1705942283904,-706.09,0.00055616,120]
[312523613,1705942283913,-1049.13,0.00055616,120]
[312523614,1705942283922,-500.0,0.00055616,120]
[312523615,1705942283931,-722.39,0.00055616,120]
[312523616,1705942283941,-500.0,0.00055616,120]
[312523617,1705942283951,-500.0,0.00055616,120]
[312523618,1705942283961,-1098.78,0.00055616,120]
[312523619,1705942283971,-500.0,0.00055616,120]
[312523620,1705942283980,-1040.43,0.00055616,120]
[312523621,1705942283989,-676.51,0.00055616,120]
[312523622,1705942283999,-1000.0,0.00055616,7]
[312523623,1705942284008,-800.29,0.00055616,120]
[312523624,1705942284017,-977.04,0.00055616,120]
[312523625,1705942284026,-622.73,0.00055616,120]
[312523626,1705942284036,-940.44,0.00055616,120]
[312523627,1705942284045,-812.24,0.00055616,120]
[312523628,1705942284054,-4003.53,0.00055616,120]
[312523629,1705942284063,-543.32,0.00055616,120]
[312523630,1705942284072,-762.89,0.00055616,120]
[312523631,1705942284082,-683.59,0.00055616,120]
[312523632,1705942284091,-735.35,0.00055616,120]
[312523633,1705942284101,-500.0,0.00055616,120]
[312523634,1705942284110,-500.0,0.00055616,120]
[312523635,1705942284119,-7945.75,0.00055616,120]
[312523636,1705942284129,-500.0,0.00055616,120]
[312523637,1705942284138,-752.98,0.00055616,120]
[312523638,1705942284329,-1119.94,0.00055616,120]
[312523639,1705942284338,-658.72,0.00055616,120]
[312523640,1705942284348,-590.12,0.00055616,120]
[312523641,1705942284358,-500.0,0.00055616,120]
[312523642,1705942284367,-500.0,0.00055616,120]
[312523643,1705942284377,-500.0,0.00055616,120]
[312523644,1705942284386,-500.0,0.00055616,120]
[312523645,1705942284395,-1197.36,0.00055616,120]
[312523646,1705942284404,-873.76,0.00055616,120]
[312523647,1705942284413,-536.78,0.00055616,120]
[312523648,1705942284422,-1072.31,0.00055616,120]
[312523649,1705942284431,-500.0,0.00055616,120]
[312523650,1705942284440,-500.0,0.00055616,120]
[312523651,1705942284449,-916.28,0.00055616,120]
[312523652,1705942284458,-894.82,0.00055616,120]
[312523653,1705942284468,-500.0,0.00055616,120]
[312523654,1705942284479,-227.93751825,0.00055616,120]
[312523655,1705942284490,-500.0,0.00055616,120]
[312523656,1705942284501,-500.0,0.00055616,120]
[312523657,1705942284511,-512.51920088,0.00055616,120]
[312523658,1705942284520,-563.54,0.00055616,120]
[312523659,1705942284530,-984.92,0.00055616,120]
[312523660,1705942284540,-500.0,0.00055616,120]
[312523661,1705942284550,-2024.59,0.00055616,7]
[312523662,1705942284560,-500.0,0.00055616,120]
[312523663,1705942284570,-500.0,0.00055616,120]
[312523664,1705942284580,-500.0,0.00055616,120]
[312523665,1705942284590,-873.84,0.00055616,120]
[312523666,1705942284601,-500.0,0.00055616,120]
[312523667,1705942284610,-500.0,0.00055616,120]
[312523668,1705942284620,-1503.79,0.00055616,120]
[312523669,1705942284630,-500.0,0.00055616,120]
[312523670,1705942284640,-646.15,0.00055616,120]
[312523671,1705942284649,-434.98664707,0.00055616,120]
[312523672,1705942284659,-781.35,0.00055616,120]
[312523673,1705942284669,-564.76,0.00055616,120]
[312523674,1705942284678,-1064.36,0.00055616,120]